[Event "Titled Tuesday Blitz March 29 Early 2022"]
[White "Tsyhanchuk, Stanislav"]
[Black "Tabatabaei, M. Amin"]
[WhiteFideId "13505130"]
[BlackFideId "12521213"]
[WhiteElo "2078"]
[BlackElo "2544"]
[Result "0-1"]
[Round "05"]
[TimeControl "180+1"]
[Date "2022.03.29"]
[WhiteClock "0:00:01"]
[BlackClock "0:00:37"]

1. e4 {[%clk 0:02:59]}  c6 {[%clk 0:02:58]} 2. d4 {[%clk 0:02:59]}  d5 {[%clk 0:02:58]} 3. e5 {[%clk 0:03:00]}  Bf5 {[%clk 0:02:55]} 4. h4 {[%clk 0:03:00]}  h6 {[%clk 0:02:54]} 5. g4 {[%clk 0:02:59]}  Be4 {[%clk 0:02:53]} 6. f3 {[%clk 0:02:59]}  Bh7 {[%clk 0:02:54]} 7. h5 {[%clk 0:02:57]}  e6 {[%clk 0:02:53]} 8. Bd3 {[%clk 0:02:53]}  Bxd3 {[%clk 0:02:52]} 9. Qxd3 {[%clk 0:02:54]}  c5 {[%clk 0:02:52]} 10. c3 {[%clk 0:02:54]}  Qb6 {[%clk 0:02:47]} 11. f4 {[%clk 0:02:53]}  Qa6 {[%clk 0:02:45]} 12. Qxa6 {[%clk 0:02:44]}  Nxa6 {[%clk 0:02:46]} 13. Nf3 {[%clk 0:02:45]}  Ne7 {[%clk 0:02:47]} 14. Be3 {[%clk 0:02:44]}  Nc6 {[%clk 0:02:42]} 15. Ke2 {[%clk 0:02:39]}  Be7 {[%clk 0:02:42]} 16. Nbd2 {[%clk 0:02:30]}  Rc8 {[%clk 0:02:41]} 17. dxc5 {[%clk 0:02:28]}  Nxc5 {[%clk 0:02:39]} 18. Nd4 {[%clk 0:02:27]}  Kd7 {[%clk 0:02:37]} 19. Rac1 {[%clk 0:02:19]}  f6 {[%clk 0:02:24]} 20. Nxc6 {[%clk 0:02:11]}  Rxc6 {[%clk 0:02:23]} 21. Bxc5 {[%clk 0:01:57]}  Rxc5 {[%clk 0:02:16]} 22. exf6 {[%clk 0:01:52]}  gxf6 {[%clk 0:02:17]} 23. Nf3 {[%clk 0:01:41]}  Bd6 {[%clk 0:02:13]} 24. f5 {[%clk 0:01:36]}  e5 {[%clk 0:02:12]} 25. Nh4 {[%clk 0:01:16]}  Rhc8 {[%clk 0:02:10]} 26. Ng6 {[%clk 0:01:16]}  b5 {[%clk 0:02:09]} 27. a3 {[%clk 0:01:04]}  a5 {[%clk 0:02:08]} 28. Kd2 {[%clk 0:00:47]}  e4 {[%clk 0:01:52]} 29. Rhf1 {[%clk 0:00:37]}  b4 {[%clk 0:01:49]} 30. axb4 {[%clk 0:00:29]}  axb4 {[%clk 0:01:50]} 31. g5 {[%clk 0:00:03]}  fxg5 {[%clk 0:01:45]} 32. f6 {[%clk 0:00:04]}  bxc3+ {[%clk 0:01:44]} 33. bxc3 {[%clk 0:00:05]}  d4 {[%clk 0:01:31]} 34. f7 {[%clk 0:00:04]}  dxc3+ {[%clk 0:01:07]} 35. Ke3 {[%clk 0:00:02]}  Bf8 {[%clk 0:01:06]} 36. Kxe4 {[%clk 0:00:01]}  c2 {[%clk 0:01:04]} 37. Kf3 {[%clk 0:00:01]}  Rf5+ {[%clk 0:01:01]} 38. Kg2 {[%clk 0:00:02]}  Rxf1 {[%clk 0:01:00]} 39. Kxf1 {[%clk 0:00:03]}  Ke6 {[%clk 0:00:58]} 40. Nxf8+ {[%clk 0:00:03]}  Rxf8 {[%clk 0:00:57]} 41. Rxc2 {[%clk 0:00:03]}  Rxf7+ {[%clk 0:00:50]} 42. Kg2 {[%clk 0:00:04]}  Kf5 {[%clk 0:00:42]} 43. Kg3 {[%clk 0:00:03]}  Re7 {[%clk 0:00:38]} 44. Rf2+ {[%clk 0:00:02]}  Ke6 {[%clk 0:00:38]} 45. Re2+ {[%clk 0:00:02]}  Kf6 {[%clk 0:00:38]} 46. Rf2+ {[%clk 0:00:02]}  Kg7 {[%clk 0:00:38]} 47. Rd2 {[%clk 0:00:02]}  Re3+ {[%clk 0:00:38]} 48. Kg2 {[%clk 0:00:02]}  Re4 {[%clk 0:00:37]} 49. Rd7+ {[%clk 0:00:01]}  Kg8 {[%clk 0:00:37]} 0-1


[Site "https://www.chess.com"]

[Event "Titled Tuesday Blitz March 29 Early 2022"]
[White "Vestby-Ellingsen, Mads"]
[Black "Petrova, Irina"]
[WhiteFideId "1520857"]
[BlackFideId "14124122"]
[WhiteElo "2232"]
[BlackElo "1993"]
[Result "1-0"]
[Round "05"]
[TimeControl "180+1"]
[Date "2022.03.30"]
[WhiteClock "0:00:08"]
[BlackClock "0:00:01"]

1. d4 {[%clk 0:03:00]}  d6 {[%clk 0:03:00]} 2. e4 {[%clk 0:03:00]}  Nf6 {[%clk 0:02:59]} 3. Nc3 {[%clk 0:03:00]}  e5 {[%clk 0:02:54]} 4. dxe5 {[%clk 0:02:58]}  dxe5 {[%clk 0:02:54]} 5. Qxd8+ {[%clk 0:02:59]}  Kxd8 {[%clk 0:02:54]} 6. Bc4 {[%clk 0:03:00]}  Ke8 {[%clk 0:02:53]} 7. f4 {[%clk 0:02:57]}  Bb4 {[%clk 0:02:47]} 8. fxe5 {[%clk 0:02:40]}  Nxe4 {[%clk 0:02:45]} 9. Ne2 {[%clk 0:02:39]}  Bg4 {[%clk 0:02:35]} 10. Bd5 {[%clk 0:02:14]}  Bxe2 {[%clk 0:02:14]} 11. Bxe4 {[%clk 0:02:12]}  Ba6 {[%clk 0:02:12]} 12. Bd2 {[%clk 0:02:03]}  Nd7 {[%clk 0:02:12]} 13. O-O-O {[%clk 0:01:34]}  c6 {[%clk 0:02:08]} 14. Bf4 {[%clk 0:01:20]}  Bxc3 {[%clk 0:02:00]} 15. bxc3 {[%clk 0:01:20]}  Nc5 {[%clk 0:02:01]} 16. Bf5 {[%clk 0:01:16]}  Ne6 {[%clk 0:01:55]} 17. Be3 {[%clk 0:01:07]}  Ke7 {[%clk 0:01:35]} 18. Bxe6 {[%clk 0:00:51]}  Kxe6 {[%clk 0:01:29]} 19. Rd6+ {[%clk 0:00:51]}  Kxe5 {[%clk 0:01:24]} 20. Rd7 {[%clk 0:00:51]}  Ke6 {[%clk 0:01:19]} 21. Rhd1 {[%clk 0:00:46]}  Bc4 {[%clk 0:01:15]} 22. R1d6+ {[%clk 0:00:39]}  Ke5 {[%clk 0:01:14]} 23. Bd4+ {[%clk 0:00:36]}  Kf5 {[%clk 0:01:08]} 24. Rxb7 {[%clk 0:00:36]}  Bxa2 {[%clk 0:00:48]} 25. Rxc6 {[%clk 0:00:35]}  Rhc8 {[%clk 0:00:39]} 26. Rxc8 {[%clk 0:00:28]}  Rxc8 {[%clk 0:00:40]} 27. Rxa7 {[%clk 0:00:28]}  Be6 {[%clk 0:00:39]} 28. Ra5+ {[%clk 0:00:21]}  Kg6 {[%clk 0:00:33]} 29. Kd2 {[%clk 0:00:20]}  f6 {[%clk 0:00:32]} 30. Ra7 {[%clk 0:00:15]}  h5 {[%clk 0:00:31]} 31. h4 {[%clk 0:00:14]}  Bd5 {[%clk 0:00:30]} 32. g3 {[%clk 0:00:13]}  Bc4 {[%clk 0:00:28]} 33. Rd7 {[%clk 0:00:12]}  Be6 {[%clk 0:00:27]} 34. Re7 {[%clk 0:00:12]}  Bf5 {[%clk 0:00:25]} 35. Ra7 {[%clk 0:00:11]}  Be6 {[%clk 0:00:23]} 36. Ra4 {[%clk 0:00:11]}  Bc4 {[%clk 0:00:22]} 37. Rb4 {[%clk 0:00:11]}  Be6 {[%clk 0:00:22]} 38. Be3 {[%clk 0:00:10]}  Bc4 {[%clk 0:00:20]} 39. Bf4 {[%clk 0:00:10]}  Be6 {[%clk 0:00:19]} 40. Kd3 {[%clk 0:00:10]}  Bf5+ {[%clk 0:00:19]} 41. Ke3 {[%clk 0:00:10]}  Bxc2 {[%clk 0:00:18]} 42. c4 {[%clk 0:00:10]}  Bf5 {[%clk 0:00:18]} 43. Bd6 {[%clk 0:00:09]}  Be6 {[%clk 0:00:17]} 44. c5 {[%clk 0:00:08]}  Bd5 {[%clk 0:00:17]} 45. Ra4 {[%clk 0:00:06]}  Kf5 {[%clk 0:00:16]} 46. Ra7 {[%clk 0:00:05]}  g5 {[%clk 0:00:15]} 47. Rh7 {[%clk 0:00:06]}  gxh4 {[%clk 0:00:14]} 48. Rxh5+ {[%clk 0:00:05]}  Ke6 {[%clk 0:00:13]} 49. gxh4 {[%clk 0:00:02]}  Rg8 {[%clk 0:00:11]} 50. Rh7 {[%clk 0:00:02]}  Ra8 {[%clk 0:00:08]} 51. Kd4 {[%clk 0:00:01]}  Ra4+ {[%clk 0:00:08]} 52. Kc3 {[%clk 0:00:02]}  Rc4+ {[%clk 0:00:07]} 53. Kd3 {[%clk 0:00:02]}  Ra4 {[%clk 0:00:06]} 54. Rh6 {[%clk 0:00:02]}  Be4+ {[%clk 0:00:03]} 55. Ke3 {[%clk 0:00:02]}  Bd5 {[%clk 0:00:04]} 56. Rh8 {[%clk 0:00:02]}  Re4+ {[%clk 0:00:04]} 57. Kd3 {[%clk 0:00:03]}  Ra4 {[%clk 0:00:04]} 58. h5 {[%clk 0:00:03]}  Ra3+ {[%clk 0:00:04]} 59. Kd4 {[%clk 0:00:04]}  Ra4+ {[%clk 0:00:04]} 60. Kc3 {[%clk 0:00:04]}  Ra3+ {[%clk 0:00:04]} 61. Kb4 {[%clk 0:00:05]}  Rb3+ {[%clk 0:00:04]} 62. Ka4 {[%clk 0:00:05]}  Rh3 {[%clk 0:00:04]} 63. h6 {[%clk 0:00:06]}  Be4 {[%clk 0:00:03]} 64. Re8+ {[%clk 0:00:06]}  Kd5 {[%clk 0:00:03]} 65. Rh8 {[%clk 0:00:06]}  Bf5 {[%clk 0:00:03]} 66. Kb4 {[%clk 0:00:06]}  Kc6 {[%clk 0:00:03]} 67. Kc4 {[%clk 0:00:06]}  Be6+ {[%clk 0:00:02]} 68. Kd4 {[%clk 0:00:07]}  f5 {[%clk 0:00:01]} 69. Ke5 {[%clk 0:00:07]}  Bd7 {[%clk 0:00:01]} 70. Rh7 {[%clk 0:00:06]}  Re3+ {[%clk 0:00:01]} 71. Kf4 {[%clk 0:00:07]}  Re4+ {[%clk 0:00:01]} 72. Kf3 {[%clk 0:00:08]}  Rh4 {[%clk 0:00:01]} 73. Rh8 {[%clk 0:00:08]} 1-0


[Site "https://www.chess.com"]

[Event "Titled Tuesday Blitz March 29 Early 2022"]
[White "Vusatiuk, Vladimir"]
[Black "Hebden, Mark L"]
[WhiteFideId "14118610"]
[BlackFideId "400084"]
[WhiteElo "2157"]
[BlackElo "2457"]
[Result "0-1"]
[Round "05"]
[TimeControl "180+1"]
[Date "2022.03.30"]
[WhiteClock "0:00:09"]
[BlackClock "0:00:13"]

1. d4 {[%clk 0:01:12]}  Nf6 {[%clk 0:02:58]} 2. c4 {[%clk 0:01:12]}  g6 {[%clk 0:02:58]} 3. Nc3 {[%clk 0:01:12]}  Bg7 {[%clk 0:02:58]} 4. e4 {[%clk 0:01:12]}  d6 {[%clk 0:02:58]} 5. Nf3 {[%clk 0:01:13]}  O-O {[%clk 0:02:58]} 6. Be2 {[%clk 0:01:13]}  e5 {[%clk 0:02:58]} 7. O-O {[%clk 0:01:14]}  Nc6 {[%clk 0:02:57]} 8. d5 {[%clk 0:01:14]}  Ne7 {[%clk 0:02:56]} 9. Ne1 {[%clk 0:01:14]}  Nd7 {[%clk 0:02:55]} 10. Nd3 {[%clk 0:01:14]}  f5 {[%clk 0:02:56]} 11. f3 {[%clk 0:01:14]}  f4 {[%clk 0:02:53]} 12. Bd2 {[%clk 0:01:04]}  g5 {[%clk 0:02:52]} 13. b4 {[%clk 0:01:00]}  Ng6 {[%clk 0:02:51]} 14. Kh1 {[%clk 0:01:00]}  Nf6 {[%clk 0:02:50]} 15. Rg1 {[%clk 0:00:57]}  Rf7 {[%clk 0:02:39]} 16. c5 {[%clk 0:00:55]}  Bf8 {[%clk 0:02:38]} 17. g3 {[%clk 0:00:52]}  fxg3 {[%clk 0:02:32]} 18. Rxg3 {[%clk 0:00:44]}  h6 {[%clk 0:02:29]} 19. cxd6 {[%clk 0:00:40]}  cxd6 {[%clk 0:02:28]} 20. Qg1 {[%clk 0:00:37]}  Rg7 {[%clk 0:02:22]} 21. Rc1 {[%clk 0:00:31]}  Nh5 {[%clk 0:02:12]} 22. Rg2 {[%clk 0:00:30]}  Bh3 {[%clk 0:02:01]} 23. Rf2 {[%clk 0:00:30]}  Ngf4 {[%clk 0:01:57]} 24. Bxf4 {[%clk 0:00:25]}  gxf4 {[%clk 0:01:54]} 25. Qe1 {[%clk 0:00:22]}  Qh4 {[%clk 0:01:44]} 26. Bf1 {[%clk 0:00:12]}  Bxf1 {[%clk 0:01:31]} 27. Rxf1 {[%clk 0:00:07]}  Ng3+ {[%clk 0:01:29]} 28. Kg2 {[%clk 0:00:05]}  Nxe4+ {[%clk 0:01:25]} 29. Kh1 {[%clk 0:00:04]}  Ng3+ {[%clk 0:01:24]} 30. Kg2 {[%clk 0:00:04]}  Nxf1+ {[%clk 0:01:23]} 31. Kxf1 {[%clk 0:00:05]}  Qxh2 {[%clk 0:01:20]} 32. Qf2 {[%clk 0:00:04]}  Qxf2+ {[%clk 0:01:15]} 33. Nxf2 {[%clk 0:00:03]}  Rc8 {[%clk 0:01:10]} 34. Nfe4 {[%clk 0:00:03]}  Be7 {[%clk 0:01:08]} 35. Rd1 {[%clk 0:00:04]}  Kf7 {[%clk 0:01:01]} 36. Nb5 {[%clk 0:00:04]}  Rg6 {[%clk 0:00:58]} 37. Rd2 {[%clk 0:00:04]}  a6 {[%clk 0:00:56]} 38. Nbc3 {[%clk 0:00:04]}  h5 {[%clk 0:00:53]} 39. Rh2 {[%clk 0:00:04]}  h4 {[%clk 0:00:49]} 40. Ke2 {[%clk 0:00:05]}  Rcg8 {[%clk 0:00:46]} 41. Kf2 {[%clk 0:00:04]}  Rh8 {[%clk 0:00:43]} 42. Ne2 {[%clk 0:00:05]}  h3 {[%clk 0:00:40]} 43. Ng1 {[%clk 0:00:05]}  Rgg8 {[%clk 0:00:32]} 44. Nxh3 {[%clk 0:00:05]}  Rc8 {[%clk 0:00:30]} 45. Nd2 {[%clk 0:00:02]}  Bf6 {[%clk 0:00:26]} 46. Ke1 {[%clk 0:00:02]}  Ke7 {[%clk 0:00:26]} 47. Ke2 {[%clk 0:00:02]}  Rc3 {[%clk 0:00:24]} 48. Rh1 {[%clk 0:00:01]}  Rc2 {[%clk 0:00:23]} 49. Kd1 {[%clk 0:00:02]}  Rxa2 {[%clk 0:00:23]} 50. Ke2 {[%clk 0:00:02]}  Rc8 {[%clk 0:00:20]} 51. Nf2 {[%clk 0:00:03]}  Rc3 {[%clk 0:00:19]} 52. Ne4 {[%clk 0:00:04]}  Re3+ {[%clk 0:00:19]} 53. Kf2 {[%clk 0:00:04]}  Rxe4 {[%clk 0:00:19]} 54. Rh7+ {[%clk 0:00:04]}  Kf8 {[%clk 0:00:18]} 55. fxe4 {[%clk 0:00:04]}  Rxd2+ {[%clk 0:00:17]} 56. Kf3 {[%clk 0:00:05]}  Rd4 {[%clk 0:00:17]} 57. Rxb7 {[%clk 0:00:06]}  Rd3+ {[%clk 0:00:15]} 58. Kg4 {[%clk 0:00:06]}  f3 {[%clk 0:00:15]} 59. Rh7 {[%clk 0:00:04]}  f2 {[%clk 0:00:14]} 60. Rh1 {[%clk 0:00:04]}  Re3 {[%clk 0:00:12]} 61. Rf1 {[%clk 0:00:04]}  Rxe4+ {[%clk 0:00:12]} 62. Kf5 {[%clk 0:00:04]}  Rf4+ {[%clk 0:00:12]} 63. Ke6 {[%clk 0:00:05]}  e4 {[%clk 0:00:12]} 64. Kxd6 {[%clk 0:00:03]}  e3 {[%clk 0:00:11]} 65. Ke6 {[%clk 0:00:04]}  e2 {[%clk 0:00:11]} 66. Rc1 {[%clk 0:00:03]}  e1=Q+ {[%clk 0:00:10]} 67. Rxe1 {[%clk 0:00:02]}  fxe1=Q+ {[%clk 0:00:10]} 68. Kd7 {[%clk 0:00:03]}  Rd4 {[%clk 0:00:10]} 69. d6 {[%clk 0:00:04]}  Rxd6+ {[%clk 0:00:11]} 70. Kxd6 {[%clk 0:00:04]}  Qxb4+ {[%clk 0:00:11]} 71. Kc7 {[%clk 0:00:04]}  Qb5 {[%clk 0:00:10]} 72. Kc8 {[%clk 0:00:05]}  a5 {[%clk 0:00:10]} 73. Kc7 {[%clk 0:00:06]}  a4 {[%clk 0:00:11]} 74. Kc8 {[%clk 0:00:06]}  a3 {[%clk 0:00:12]} 75. Kc7 {[%clk 0:00:07]}  a2 {[%clk 0:00:13]} 76. Kd6 {[%clk 0:00:08]}  a1=Q {[%clk 0:00:13]} 77. Kc7 {[%clk 0:00:08]}  Qc3+ {[%clk 0:00:13]} 78. Kd6 {[%clk 0:00:09]}  Qbe5+ {[%clk 0:00:13]} 79. Kd7 {[%clk 0:00:09]}  Qcc7# {[%clk 0:00:13]} 0-1


[Site "https://www.chess.com"]

[Event "Titled Tuesday Blitz March 29 Early 2022"]
[White "Weetik, Vjacheslav"]
[Black "Tasev, Dejan"]
[WhiteFideId "4153472"]
[BlackFideId "936618"]
[WhiteElo "2469"]
[BlackElo "2253"]
[Result "1-0"]
[Round "05"]
[TimeControl "180+1"]
[Date "2022.03.29"]
[WhiteClock "0:01:14"]
[BlackClock "0:00:03"]

1. e4 {[%clk 0:02:59]}  e5 {[%clk 0:02:59]} 2. Nf3 {[%clk 0:03:00]}  Nf6 {[%clk 0:02:58]} 3. Nc3 {[%clk 0:02:58]}  Nc6 {[%clk 0:02:58]} 4. Bb5 {[%clk 0:02:58]}  Bb4 {[%clk 0:02:58]} 5. O-O {[%clk 0:02:58]}  Bxc3 {[%clk 0:02:51]} 6. bxc3 {[%clk 0:02:57]}  d6 {[%clk 0:02:51]} 7. d4 {[%clk 0:02:45]}  exd4 {[%clk 0:02:50]} 8. cxd4 {[%clk 0:02:41]}  O-O {[%clk 0:02:49]} 9. Bg5 {[%clk 0:02:28]}  h6 {[%clk 0:02:37]} 10. Bh4 {[%clk 0:02:28]}  Bg4 {[%clk 0:02:21]} 11. c3 {[%clk 0:02:08]}  g5 {[%clk 0:02:14]} 12. Bg3 {[%clk 0:02:02]}  Nxe4 {[%clk 0:02:09]} 13. Qd3 {[%clk 0:02:02]}  Nf6 {[%clk 0:01:27]} 14. h4 {[%clk 0:01:54]}  Nh5 {[%clk 0:01:01]} 15. hxg5 {[%clk 0:01:43]}  hxg5 {[%clk 0:00:49]} 16. Bc4 {[%clk 0:01:37]}  Kg7 {[%clk 0:00:39]} 17. Rab1 {[%clk 0:01:28]}  d5 {[%clk 0:00:18]} 18. Bb3 {[%clk 0:01:26]}  Nxg3 {[%clk 0:00:17]} 19. fxg3 {[%clk 0:01:26]}  f5 {[%clk 0:00:15]} 20. Bc2 {[%clk 0:01:18]}  Qf6 {[%clk 0:00:14]} 21. Rxb7 {[%clk 0:01:16]}  Rf7 {[%clk 0:00:13]} 22. Nh2 {[%clk 0:01:16]}  Rh8 {[%clk 0:00:06]} 23. Nxg4 {[%clk 0:01:15]}  Qg6 {[%clk 0:00:04]} 24. Rxf5 {[%clk 0:01:13]}  Rxf5 {[%clk 0:00:02]} 25. Qxf5 {[%clk 0:01:14]}  Qxf5 {[%clk 0:00:03]} 26. Bxf5 {[%clk 0:01:14]} 1-0


[Site "https://www.chess.com"]

[Event "Titled Tuesday Blitz March 29 Early 2022"]
[White "Yoo, Christopher Woojin"]
[Black "Abdrlauf, Elham"]
[WhiteFideId "30909694"]
[BlackFideId "1533533"]
[WhiteElo "2105"]
[BlackElo "2334"]
[Result "0-1"]
[Round "05"]
[TimeControl "180+1"]
[Date "2022.03.29"]
[WhiteClock "0:00:02"]
[BlackClock "0:00:02"]

1. e4 {[%clk 0:03:00]}  e6 {[%clk 0:02:56]} 2. b3 {[%clk 0:02:51]}  d5 {[%clk 0:02:57]} 3. Bb2 {[%clk 0:02:51]}  dxe4 {[%clk 0:02:56]} 4. Nc3 {[%clk 0:02:50]}  Nf6 {[%clk 0:02:56]} 5. Qe2 {[%clk 0:02:50]}  Bb4 {[%clk 0:02:51]} 6. O-O-O {[%clk 0:02:44]}  Qe7 {[%clk 0:02:52]} 7. Kb1 {[%clk 0:02:27]}  O-O {[%clk 0:02:40]} 8. Nxe4 {[%clk 0:02:24]}  Nbd7 {[%clk 0:02:39]} 9. Nf3 {[%clk 0:02:17]}  Ba3 {[%clk 0:02:30]} 10. Ba1 {[%clk 0:02:09]}  a5 {[%clk 0:02:29]} 11. Ne5 {[%clk 0:01:39]}  a4 {[%clk 0:02:08]} 12. Nxd7 {[%clk 0:01:36]}  Nxd7 {[%clk 0:02:06]} 13. Qh5 {[%clk 0:01:18]}  f5 {[%clk 0:01:41]} 14. Nc3 {[%clk 0:01:02]}  Nf6 {[%clk 0:01:36]} 15. Qf3 {[%clk 0:01:00]}  axb3 {[%clk 0:01:33]} 16. axb3 {[%clk 0:01:00]}  Kh8 {[%clk 0:01:11]} 17. Bc4 {[%clk 0:00:56]}  e5 {[%clk 0:01:11]} 18. Nd5 {[%clk 0:00:50]}  Nxd5 {[%clk 0:01:08]} 19. Qxd5 {[%clk 0:00:50]}  Bd6 {[%clk 0:01:03]} 20. Rhe1 {[%clk 0:00:40]}  c6 {[%clk 0:00:57]} 21. Qf3 {[%clk 0:00:41]}  e4 {[%clk 0:00:45]} 22. Qc3 {[%clk 0:00:37]}  b5 {[%clk 0:00:32]} 23. Bf1 {[%clk 0:00:20]}  b4 {[%clk 0:00:32]} 24. Qb2 {[%clk 0:00:20]}  Be6 {[%clk 0:00:26]} 25. d3 {[%clk 0:00:17]}  Ra3 {[%clk 0:00:18]} 26. Qc1 {[%clk 0:00:02]}  Bxb3 {[%clk 0:00:03]} 27. cxb3 {[%clk 0:00:02]}  Rxb3+ {[%clk 0:00:04]} 28. Bb2 {[%clk 0:00:02]}  Ra8 {[%clk 0:00:02]} 0-1


[Site "https://www.chess.com"]

[Event "Titled Tuesday Blitz March 29 Early 2022"]
[White "Zaksaite, Salomeja"]
[Black "Seo, Jung Min"]
[WhiteFideId "12801496"]
[BlackFideId "1734687"]
[WhiteElo "1953"]
[BlackElo "2401"]
[Result "0-1"]
[Round "05"]
[TimeControl "180+1"]
[Date "2022.03.29"]
[WhiteClock "0:00:02"]
[BlackClock "0:01:02"]

1. e4 {[%clk 0:02:57]}  c5 {[%clk 0:02:59]} 2. Nf3 {[%clk 0:02:57]}  e6 {[%clk 0:02:59]} 3. d4 {[%clk 0:02:56]}  cxd4 {[%clk 0:03:00]} 4. Nxd4 {[%clk 0:02:57]}  a6 {[%clk 0:02:59]} 5. Nc3 {[%clk 0:02:57]}  Qc7 {[%clk 0:02:59]} 6. Bd3 {[%clk 0:02:57]}  Nc6 {[%clk 0:02:58]} 7. Be3 {[%clk 0:02:53]}  Nf6 {[%clk 0:02:55]} 8. Qf3 {[%clk 0:02:51]}  Ne5 {[%clk 0:02:48]} 9. Qg3 {[%clk 0:02:47]}  d6 {[%clk 0:02:38]} 10. O-O {[%clk 0:02:39]}  Neg4 {[%clk 0:02:23]} 11. Bd2 {[%clk 0:02:32]}  Qb6 {[%clk 0:02:22]} 12. Nb3 {[%clk 0:02:26]}  h5 {[%clk 0:02:22]} 13. h3 {[%clk 0:02:20]}  h4 {[%clk 0:02:19]} 14. Qf3 {[%clk 0:02:15]}  Ne5 {[%clk 0:02:19]} 15. Qe2 {[%clk 0:02:15]}  Bd7 {[%clk 0:02:14]} 16. Be3 {[%clk 0:02:13]}  Qc7 {[%clk 0:02:14]} 17. f4 {[%clk 0:02:11]}  Nxd3 {[%clk 0:02:01]} 18. cxd3 {[%clk 0:02:12]}  Be7 {[%clk 0:02:01]} 19. Rac1 {[%clk 0:02:11]}  Bc6 {[%clk 0:02:01]} 20. f5 {[%clk 0:01:51]}  e5 {[%clk 0:01:58]} 21. Nd5 {[%clk 0:01:28]}  Qb8 {[%clk 0:01:40]} 22. Nxe7 {[%clk 0:01:21]}  Kxe7 {[%clk 0:01:40]} 23. d4 {[%clk 0:01:01]}  Kf8 {[%clk 0:01:37]} 24. dxe5 {[%clk 0:00:48]}  dxe5 {[%clk 0:01:37]} 25. Bc5+ {[%clk 0:00:38]}  Kg8 {[%clk 0:01:36]} 26. Rfd1 {[%clk 0:00:22]}  Nxe4 {[%clk 0:01:34]} 27. Be7 {[%clk 0:00:22]}  Qe8 {[%clk 0:01:31]} 28. f6 {[%clk 0:00:17]}  Nxf6 {[%clk 0:01:23]} 29. Bxf6 {[%clk 0:00:16]}  gxf6 {[%clk 0:01:23]} 30. Qg4+ {[%clk 0:00:12]}  Kf8 {[%clk 0:01:23]} 31. Nc5 {[%clk 0:00:11]}  Rg8 {[%clk 0:01:16]} 32. Qxh4 {[%clk 0:00:07]}  Rxg2+ {[%clk 0:01:15]} 33. Kf1 {[%clk 0:00:07]}  Kg7 {[%clk 0:01:14]} 34. Rd7 {[%clk 0:00:03]}  Rg6 {[%clk 0:01:06]} 35. Rd6 {[%clk 0:00:02]}  Qe7 {[%clk 0:01:04]} 36. Rcd1 {[%clk 0:00:02]}  Rh8 {[%clk 0:01:03]} 37. Qf2 {[%clk 0:00:02]}  Rxh3 {[%clk 0:01:02]} 0-1


[Site "https://www.chess.com"]

[Event "Titled Tuesday Blitz March 29 Early 2022"]
[White "Zemlyanskii, Ivan"]
[Black "Koridze, Lile"]
[WhiteFideId "24249971"]
[BlackFideId "13612514"]
[WhiteElo "1759"]
[BlackElo "1999"]
[Result "1-0"]
[Round "05"]
[TimeControl "180+1"]
[Date "2022.03.30"]
[WhiteClock "0:01:20"]
[BlackClock "0:01:51"]

1. d4 {[%clk 0:03:00]}  Nf6 {[%clk 0:02:59]} 2. c4 {[%clk 0:03:00]}  e6 {[%clk 0:02:59]} 3. Nf3 {[%clk 0:02:59]}  d5 {[%clk 0:02:59]} 4. e3 {[%clk 0:02:58]}  Bb4+ {[%clk 0:02:59]} 5. Bd2 {[%clk 0:02:56]}  Bxd2+ {[%clk 0:02:59]} 6. Qxd2 {[%clk 0:02:57]}  O-O {[%clk 0:02:58]} 7. Nc3 {[%clk 0:02:57]}  c6 {[%clk 0:02:58]} 8. Bd3 {[%clk 0:02:57]}  h6 {[%clk 0:02:57]} 9. O-O {[%clk 0:02:55]}  b6 {[%clk 0:02:50]} 10. Rac1 {[%clk 0:02:50]}  Bb7 {[%clk 0:02:50]} 11. b4 {[%clk 0:02:43]}  dxc4 {[%clk 0:02:48]} 12. Bxc4 {[%clk 0:02:43]}  Nbd7 {[%clk 0:02:48]} 13. Rfd1 {[%clk 0:02:38]}  Qe7 {[%clk 0:02:48]} 14. e4 {[%clk 0:02:36]}  Rfd8 {[%clk 0:02:47]} 15. a3 {[%clk 0:02:30]}  Nf8 {[%clk 0:02:44]} 16. Qe3 {[%clk 0:02:29]}  Rac8 {[%clk 0:02:40]} 17. e5 {[%clk 0:02:19]}  Nd5 {[%clk 0:02:39]} 18. Nxd5 {[%clk 0:02:18]}  cxd5 {[%clk 0:02:39]} 19. Bd3 {[%clk 0:02:16]}  g6 {[%clk 0:02:28]} 20. Qxh6 {[%clk 0:02:13]}  Nh7 {[%clk 0:02:26]} 21. h4 {[%clk 0:02:12]}  Qf8 {[%clk 0:02:22]} 22. Qf4 {[%clk 0:02:07]}  Qg7 {[%clk 0:02:21]} 23. g4 {[%clk 0:02:01]}  Nf8 {[%clk 0:02:17]} 24. Kh2 {[%clk 0:01:59]}  Nd7 {[%clk 0:02:12]} 25. h5 {[%clk 0:01:55]}  Nf8 {[%clk 0:02:11]} 26. Ng5 {[%clk 0:01:48]}  Nh7 {[%clk 0:02:08]} 27. Nxf7 {[%clk 0:01:28]}  g5 {[%clk 0:01:52]} 28. Bxh7+ {[%clk 0:01:20]}  Kxh7 {[%clk 0:01:52]} 29. Nxg5+ {[%clk 0:01:20]}  Kg8 {[%clk 0:01:51]} 30. Nxe6 {[%clk 0:01:20]} 1-0


[Site "https://www.chess.com"]

[Event "Titled Tuesday Blitz March 29 Early 2022"]
[White "Zhao, Jun"]
[Black "Sanal, Vahap"]
[WhiteFideId "8602522"]
[BlackFideId "6300545"]
[WhiteElo "2547"]
[BlackElo "2603"]
[Result "1-0"]
[Round "05"]
[TimeControl "180+1"]
[Date "2022.03.29"]
[WhiteClock "0:00:12"]
[BlackClock "0:00:04"]

1. d4 {[%clk 0:02:59]}  Nf6 {[%clk 0:03:00]} 2. Bf4 {[%clk 0:02:59]}  d5 {[%clk 0:02:59]} 3. e3 {[%clk 0:02:59]}  Bf5 {[%clk 0:02:59]} 4. c4 {[%clk 0:02:58]}  e6 {[%clk 0:03:00]} 5. Nc3 {[%clk 0:02:58]}  Nc6 {[%clk 0:02:48]} 6. Nf3 {[%clk 0:02:57]}  Bb4 {[%clk 0:02:39]} 7. Bd3 {[%clk 0:02:41]}  Bxd3 {[%clk 0:02:33]} 8. Qxd3 {[%clk 0:02:40]}  Ne4 {[%clk 0:02:21]} 9. O-O {[%clk 0:02:34]}  Bxc3 {[%clk 0:02:10]} 10. bxc3 {[%clk 0:02:32]}  Na5 {[%clk 0:02:05]} 11. cxd5 {[%clk 0:02:17]}  exd5 {[%clk 0:02:04]} 12. Rab1 {[%clk 0:01:49]}  O-O {[%clk 0:01:47]} 13. h4 {[%clk 0:01:41]}  b6 {[%clk 0:01:42]} 14. Ng5 {[%clk 0:01:37]}  Re8 {[%clk 0:01:30]} 15. f3 {[%clk 0:01:30]}  Nxg5 {[%clk 0:01:23]} 16. hxg5 {[%clk 0:01:30]}  Nc4 {[%clk 0:01:13]} 17. Kf2 {[%clk 0:01:28]}  Re6 {[%clk 0:01:01]} 18. Rh1 {[%clk 0:01:28]}  Rg6 {[%clk 0:01:01]} 19. Rh5 {[%clk 0:01:21]}  Qd7 {[%clk 0:00:45]} 20. Rbh1 {[%clk 0:01:21]}  Kf8 {[%clk 0:00:45]} 21. Rxh7 {[%clk 0:01:19]}  Ke7 {[%clk 0:00:45]} 22. e4 {[%clk 0:00:55]}  Re8 {[%clk 0:00:37]} 23. e5 {[%clk 0:00:46]}  Qa4 {[%clk 0:00:35]} 24. Kg3 {[%clk 0:00:32]}  Qxa2 {[%clk 0:00:29]} 25. e6 {[%clk 0:00:28]}  Rxe6 {[%clk 0:00:25]} 26. Rxg7 {[%clk 0:00:29]}  Rf8 {[%clk 0:00:16]} 27. Qf5 {[%clk 0:00:22]}  Nd6 {[%clk 0:00:07]} 28. Bxd6+ {[%clk 0:00:21]}  Kxd6 {[%clk 0:00:08]} 29. Rxf7 {[%clk 0:00:18]}  Rxf7 {[%clk 0:00:09]} 30. Qxf7 {[%clk 0:00:18]}  Qd2 {[%clk 0:00:05]} 31. Qf4+ {[%clk 0:00:16]}  Qxf4+ {[%clk 0:00:06]} 32. Kxf4 {[%clk 0:00:16]}  a5 {[%clk 0:00:05]} 33. Kf5 {[%clk 0:00:15]}  Re8 {[%clk 0:00:05]} 34. g6 {[%clk 0:00:12]}  Rf8+ {[%clk 0:00:06]} 35. Kg5 {[%clk 0:00:13]}  c5 {[%clk 0:00:05]} 36. g7 {[%clk 0:00:13]}  Rc8 {[%clk 0:00:04]} 37. Rh8 {[%clk 0:00:12]} 1-0


[Site "https://www.chess.com"]